[Event "MČR juniorů a juniorek v rapid šachu 2023"]
[Site "Czech Republic"]
[Date "2023.09.23"]
[Round "4.18"]
[White "Pavlis, Matej"]
[Black "Jun, Robert"]
[Result "1-0"]
[TimeControl "20 min + 5 sec per move"]
[WhiteFideId "23735767"]
[BlackFideId "23709510"]
[WhiteElo "1771"]
[BlackElo "1340"]

1. Nf3 {[%clk 00:20:13]} {[%emt 00:00:02]} d5 {[%clk 00:20:07]} {[%emt
00:00:02]} 2. d4 {[%clk 00:20:16]} e6 {[%clk 00:20:10]} {[%emt 00:00:02]} 3. c4
{[%clk 00:20:16]} {[%emt 00:00:06]} c5 {[%clk 00:20:14]} {[%emt 00:00:01]} 4.
cxd5 {[%clk 00:20:17]} {[%emt 00:00:04]} exd5 {[%clk 00:20:18]} 5. Nc3 {[%clk
00:20:20]} {[%emt 00:00:02]} Nc6 {[%clk 00:20:21]} {[%emt 00:00:02]} 6. g3
{[%clk 00:20:23]} {[%emt 00:00:01]} Nf6 {[%clk 00:20:24]} {[%emt 00:00:02]} 7.
Bg2 {[%clk 00:20:27]} cxd4 {[%clk 00:20:27]} {[%emt 00:00:02]} 8. Nxd4 {[%clk
00:20:31]} {[%emt 00:00:01]} Bb4 {[%clk 00:20:29]} {[%emt 00:00:04]} 9. O-O
{[%clk 00:20:26]} {[%emt 00:00:10]} O-O {[%clk 00:20:30]} {[%emt 00:00:04]} 10.
Bg5 {[%clk 00:20:23]} {[%emt 00:00:08]} h6 {[%clk 00:20:23]} {[%emt 00:00:11]}
11. Bxf6 {[%clk 00:20:20]} {[%emt 00:00:08]} Qxf6 {[%clk 00:20:26]} {[%emt
00:00:02]} 12. e3 {[%clk 00:19:45]} {[%emt 00:00:40]} Bxc3 {[%clk 00:20:24]}
{[%emt 00:00:07]} 13. bxc3 {[%clk 00:19:48]} {[%emt 00:00:03]} Nxd4 {[%clk
00:20:27]} {[%emt 00:00:02]} 14. cxd4 {[%clk 00:19:49]} {[%emt 00:00:04]} Be6
{[%clk 00:20:31]} {[%emt 00:00:01]} 15. Qb3 {[%clk 00:19:24]} {[%emt 00:00:31]}
b6 {[%clk 00:19:00]} {[%emt 00:01:36]} 16. Bxd5 {[%clk 00:19:18]} {[%emt
00:00:11]} Bxd5 {[%clk 00:19:04]} 17. Qxd5 {[%clk 00:19:22]} Rfd8 {[%clk
00:19:02]} {[%emt 00:00:06]} 18. Qe4 {[%clk 00:19:01]} {[%emt 00:00:25]} Rac8
{[%clk 00:18:55]} {[%emt 00:00:13]} 19. Rac1 {[%clk 00:18:41]} {[%emt
00:00:26]} Qe6 {[%clk 00:18:50]} {[%emt 00:00:10]} 20. Qxe6 {[%clk 00:16:28]}
{[%emt 00:02:18]} fxe6 {[%clk 00:18:53]} {[%emt 00:00:02]} 21. Kg2 {[%clk
00:16:25]} {[%emt 00:00:08]} Kf7 {[%clk 00:18:57]} 22. Kf3 {[%clk 00:16:27]}
{[%emt 00:00:02]} Kf6 {[%clk 00:18:58]} {[%emt 00:00:04]} 23. Ke4 {[%clk
00:16:31]} g5 {[%clk 00:19:01]} {[%emt 00:00:02]} 24. g4 {[%clk 00:15:56]}
{[%emt 00:00:40]} h5 {[%clk 00:18:32]} {[%emt 00:00:33]} 25. gxh5 {[%clk
00:15:45]} {[%emt 00:00:17]} Rxc1 {[%clk 00:18:36]} {[%emt 00:00:02]} 26. Rxc1
{[%clk 00:15:48]} Rh8 {[%clk 00:18:40]} 27. Rc7 {[%clk 00:14:46]} {[%emt
00:01:07]} Rxh5 {[%clk 00:18:41]} {[%emt 00:00:03]} 28. Rxa7 {[%clk 00:14:50]}
{[%emt 00:00:02]} Rh4+ {[%clk 00:18:44]} {[%emt 00:00:02]} 29. Kf3 {[%clk
00:14:51]} {[%emt 00:00:03]} Rxh2 {[%clk 00:18:47]} {[%emt 00:00:02]} 30. Rb7
{[%clk 00:14:51]} {[%emt 00:00:06]} Rh3+ {[%clk 00:18:48]} {[%emt 00:00:04]} 31.
Kg4 {[%clk 00:14:24]} {[%emt 00:00:32]} Rh4+ {[%clk 00:18:41]} {[%emt
00:00:12]} 32. Kg3 {[%clk 00:14:27]} {[%emt 00:00:02]} Kf5 {[%clk 00:18:42]}
{[%emt 00:00:04]} 33. Rxb6 {[%clk 00:14:30]} {[%emt 00:00:02]} Rg4+ {[%clk
00:18:36]} {[%emt 00:00:10]} 34. Kf3 {[%clk 00:14:28]} {[%emt 00:00:07]} Rg1
{[%clk 00:18:37]} {[%emt 00:00:05]} 35. Rb5+ {[%clk 00:14:28]} {[%emt
00:00:05]} Kf6 {[%clk 00:18:41]} 36. a4 {[%clk 00:13:26]} {[%emt 00:01:08]} g4+
{[%clk 00:17:23]} {[%emt 00:01:22]} 37. Kf4 {[%clk 00:11:20]} {[%emt 00:02:11]}
Rg2 {[%clk 00:17:26]} {[%emt 00:00:02]} 38. Rb2 {[%clk 00:10:58]} {[%emt
00:00:28]} Rg1 {[%clk 00:17:25]} {[%emt 00:00:06]} 39. Ra2 {[%clk 00:10:29]}
{[%emt 00:00:34]} Rg2 {[%clk 00:17:21]} {[%emt 00:00:09]} 40. a5 {[%clk
00:10:18]} {[%emt 00:00:17]} Rh2 {[%clk 00:17:21]} {[%emt 00:00:04]} 41. a6
{[%clk 00:10:17]} {[%emt 00:00:06]} Rh8 {[%clk 00:17:24]} {[%emt 00:00:02]} 42.
a7 {[%clk 00:10:20]} {[%emt 00:00:02]} Ra8 {[%clk 00:17:27]} 43. Kxg4 {[%clk
00:10:24]} {[%emt 00:00:02]} Rg8+ {[%clk 00:17:30]} {[%emt 00:00:02]} 44. Kf4
{[%clk 00:10:28]} Ra8 {[%clk 00:17:34]} 45. Ra6 {[%clk 00:10:30]} {[%emt
00:00:03]} Ke7 {[%clk 00:17:30]} {[%emt 00:00:09]} 46. Ke5 {[%clk 00:10:33]}
{[%emt 00:00:02]} Kd7 {[%clk 00:17:30]} {[%emt 00:00:05]} 47. f4 {[%clk
00:10:30]} {[%emt 00:00:08]} Kc7 {[%clk 00:17:29]} {[%emt 00:00:06]} 48. Rxe6
{[%clk 00:10:30]} {[%emt 00:00:05]} Rxa7 {[%clk 00:17:32]} {[%emt 00:00:02]} 49.
Re7+ {[%clk 00:10:34]} Kb6 {[%clk 00:17:36]} {[%emt 00:00:01]} 50. Rxa7 {[%clk
00:10:38]} {[%emt 00:00:01]} Kxa7 {[%clk 00:17:40]} {[%emt 00:00:02]} 51. Kd6
{[%clk 00:10:42]} 1-0

[Event "MČR juniorů a juniorek v rapid šachu 2023"]
[Site "Czech Republic"]
[Date "2023.09.23"]
[Round "4.19"]
[White "Stary, Simon"]
[Black "Beran, Jakub"]
[Result "1-0"]
[TimeControl "20 min + 5 sec per move"]
[WhiteFideId "23734353"]
[BlackFideId "23727071"]
[WhiteElo "1518"]
[BlackElo "1645"]

1. e4 {[%clk 00:20:09]} {[%emt 00:00:01]} c5 {[%clk 00:20:08]} {[%emt
00:00:02]} 2. Nf3 {[%clk 00:20:13]} {[%emt 00:00:01]} Nc6 {[%clk 00:20:12]} 3.
d4 {[%clk 00:20:17]} cxd4 {[%clk 00:20:16]} 4. Nxd4 {[%clk 00:20:21]} {[%emt
00:00:01]} d6 {[%clk 00:20:19]} {[%emt 00:00:01]} 5. Nc3 {[%clk 00:20:25]}
{[%emt 00:00:01]} g6 {[%clk 00:20:23]} 6. Be3 {[%clk 00:20:27]} {[%emt
00:00:03]} Bg7 {[%clk 00:20:27]} {[%emt 00:00:02]} 7. f3 {[%clk 00:20:30]}
{[%emt 00:00:02]} Nf6 {[%clk 00:20:01]} {[%emt 00:00:31]} 8. Qd2 {[%clk
00:20:34]} O-O {[%clk 00:20:03]} {[%emt 00:00:03]} 9. Bc4 {[%clk 00:20:29]}
{[%emt 00:00:10]} a6 {[%clk 00:20:04]} {[%emt 00:00:04]} 10. Bb3 {[%clk
00:20:29]} {[%emt 00:00:05]} Na5 {[%clk 00:20:06]} {[%emt 00:00:03]} 11. h4
{[%clk 00:20:31]} {[%emt 00:00:04]} Nxb3 {[%clk 00:20:06]} {[%emt 00:00:03]} 12.
axb3 {[%clk 00:20:24]} {[%emt 00:00:13]} b5 {[%clk 00:19:26]} {[%emt 00:00:45]}
13. Bh6 {[%clk 00:20:12]} {[%emt 00:00:16]} Qb6 {[%clk 00:19:05]} {[%emt
00:00:26]} 14. Bxg7 {[%clk 00:20:10]} {[%emt 00:00:07]} Kxg7 {[%clk 00:19:08]}
{[%emt 00:00:02]} 15. O-O-O {[%clk 00:19:37]} {[%emt 00:00:38]} h5 {[%clk
00:18:44]} {[%emt 00:00:30]} 16. g4 hxg4 17. h5 Rh8 {[%clk 00:17:42]} {[%emt
00:00:59]} 18. hxg6 {[%clk 00:19:16]} {[%emt 00:00:02]} fxg6 {[%clk 00:17:37]}
{[%emt 00:00:09]} 19. Rxh8 {[%clk 00:19:18]} {[%emt 00:00:04]} Kxh8 {[%clk
00:17:39]} {[%emt 00:00:03]} 20. Qh6+ {[%clk 00:19:21]} {[%emt 00:00:02]} Kg8
{[%clk 00:17:43]} {[%emt 00:00:01]} 21. Qxg6+ {[%clk 00:19:18]} {[%emt
00:00:08]} Kf8 {[%clk 00:17:35]} {[%emt 00:00:12]} 22. Rh1 {[%clk 00:19:11]}
{[%emt 00:00:12]} 1-0

[Event "MČR juniorů a juniorek v rapid šachu 2023"]
[Site "Czech Republic"]
[Date "2023.09.23"]
[Round "4.20"]
[White "Rucabado, Stefan"]
[Black "Mikolas, Petr"]
[Result "1-0"]
[TimeControl "20 min + 5 sec per move"]
[WhiteFideId "23730315"]
[BlackFideId "23713224"]
[WhiteElo "1782"]
[BlackElo "1514"]

1. e4 {[%clk 00:19:56]} {[%emt 00:00:14]} e6 {[%clk 00:19:59]} {[%emt
00:00:12]} 2. d4 {[%clk 00:19:59]} {[%emt 00:00:02]} d5 {[%clk 00:20:03]} 3.
Nc3 {[%clk 00:20:03]} Nf6 {[%clk 00:19:54]} {[%emt 00:00:14]} 4. e5 {[%clk
00:20:07]} Nfd7 {[%clk 00:19:58]} 5. f4 {[%clk 00:20:11]} c5 {[%clk 00:20:03]}
6. Nf3 {[%clk 00:20:15]} {[%emt 00:00:01]} Nc6 {[%clk 00:20:07]} 7. Be3 {[%clk
00:20:19]} cxd4 {[%clk 00:20:11]} {[%emt 00:00:02]} 8. Nxd4 {[%clk 00:20:23]}
{[%emt 00:00:02]} Bc5 {[%clk 00:20:15]} 9. Nxc6 {[%clk 00:20:04]} {[%emt
00:00:23]} bxc6 {[%clk 00:20:18]} {[%emt 00:00:01]} 10. Bxc5 {[%clk 00:18:49]}
{[%emt 00:01:20]} Nxc5 {[%clk 00:20:22]} {[%emt 00:00:01]} 11. b4 {[%clk
00:18:52]} {[%emt 00:00:02]} Nd7 {[%clk 00:20:11]} {[%emt 00:00:15]} 12. Qd2
{[%clk 00:18:34]} {[%emt 00:00:23]} O-O {[%clk 00:18:28]} {[%emt 00:01:49]} 13.
Bd3 {[%clk 00:18:29]} {[%emt 00:00:13]} a5 {[%clk 00:17:45]} {[%emt 00:00:55]}
14. b5 {[%clk 00:17:51]} {[%emt 00:00:42]} cxb5 {[%clk 00:16:52]} {[%emt
00:00:58]} 15. Bxb5 {[%clk 00:15:12]} {[%emt 00:02:44]} Ba6 {[%clk 00:16:56]}
{[%emt 00:00:02]} 16. Bxa6 {[%clk 00:13:40]} {[%emt 00:01:36]} Rxa6 {[%clk
00:17:00]} {[%emt 00:00:02]} 17. O-O {[%clk 00:13:43]} {[%emt 00:00:02]} Qb6+
{[%clk 00:14:20]} {[%emt 00:02:45]} 18. Kh1 {[%clk 00:13:46]} {[%emt 00:00:01]}
Rc8 {[%clk 00:14:23]} {[%emt 00:00:02]} 19. Ne2 {[%clk 00:11:03]} {[%emt
00:02:48]} Qb2 {[%clk 00:11:26]} {[%emt 00:03:03]} 20. Nd4 {[%clk 00:08:57]}
{[%emt 00:02:11]} Rc4 {[%clk 00:11:26]} {[%emt 00:00:05]} 21. Rfd1 {[%clk
00:08:29]} {[%emt 00:00:32]} Ra8 {[%clk 00:11:27]} {[%emt 00:00:04]} 22. f5
{[%clk 00:06:39]} {[%emt 00:01:56]} Nxe5 {[%clk 00:06:02]} {[%emt 00:05:30]} 23.
fxe6 {[%clk 00:06:27]} {[%emt 00:00:16]} fxe6 {[%clk 00:04:02]} {[%emt
00:02:05]} 24. Nxe6 {[%clk 00:06:24]} {[%emt 00:00:08]} d4 {[%clk 00:03:55]}
{[%emt 00:00:12]} 25. Qg5 {[%clk 00:06:00]} {[%emt 00:00:28]} Ng6 {[%clk
00:03:40]} {[%emt 00:00:21]} 26. Qd5 {[%clk 00:05:47]} {[%emt 00:00:22]} Rac8
{[%clk 00:03:13]} {[%emt 00:00:39]} 27. Ng5+ {[%clk 00:05:47]} {[%emt
00:00:05]} Kh8 {[%clk 00:03:00]} {[%emt 00:00:18]} 28. Nf7+ {[%clk 00:05:51]}
{[%emt 00:00:01]} Kg8 {[%clk 00:03:03]} {[%emt 00:00:02]} 29. Nh6+ {[%clk
00:05:55]} {[%emt 00:00:01]} Kh8 {[%clk 00:03:07]} 30. Qg8+ {[%clk 00:05:59]}
{[%emt 00:00:02]} Rxg8 {[%clk 00:03:10]} {[%emt 00:00:02]} 31. Nf7# 1-0

[Event "MČR juniorů a juniorek v rapid šachu 2023"]
[Site "Czech Republic"]
[Date "2023.09.23"]
[Round "4.21"]
[White "Hruby, Filip"]
[Black "Rybackova, Lucie"]
[Result "0-1"]
[TimeControl "20 min + 5 sec per move"]
[WhiteFideId "23721480"]
[BlackFideId "23739207"]
[WhiteElo "1460"]
[BlackElo "1768"]

1. e4 {[%clk 00:20:00]} {[%emt 00:00:10]} c5 {[%clk 00:20:04]} {[%emt
00:00:06]} 2. d4 {[%clk 00:20:02]} {[%emt 00:00:03]} Nf6 {[%clk 00:20:00]}
{[%emt 00:00:10]} 3. e5 {[%clk 00:19:20]} {[%emt 00:00:46]} Nd5 {[%clk
00:19:52]} {[%emt 00:00:13]} 4. c3 {[%clk 00:18:46]} {[%emt 00:00:39]} cxd4
{[%clk 00:19:47]} {[%emt 00:00:11]} 5. cxd4 {[%clk 00:18:43]} {[%emt 00:00:07]}
Nc6 {[%clk 00:19:28]} {[%emt 00:00:24]} 6. Nf3 {[%clk 00:18:38]} {[%emt
00:00:10]} d6 {[%clk 00:19:19]} {[%emt 00:00:13]} 7. exd6 {[%clk 00:17:15]}
{[%emt 00:01:28]} Qxd6 {[%clk 00:19:19]} {[%emt 00:00:06]} 8. Nc3 {[%clk
00:17:05]} {[%emt 00:00:15]} Bg4 {[%clk 00:17:59]} {[%emt 00:01:25]} 9. Nxd5
{[%clk 00:13:01]} {[%emt 00:04:09]} Qxd5 {[%clk 00:17:58]} {[%emt 00:00:06]} 10.
Be3 {[%clk 00:13:03]} {[%emt 00:00:03]} e6 {[%clk 00:17:25]} {[%emt 00:00:39]}
11. a3 {[%clk 00:12:52]} {[%emt 00:00:16]} Rd8 {[%clk 00:16:58]} {[%emt
00:00:32]} 12. Be2 {[%clk 00:11:49]} {[%emt 00:01:08]} Be7 {[%clk 00:16:24]}
{[%emt 00:00:38]} 13. h3 {[%clk 00:11:33]} {[%emt 00:00:22]} Bh5 {[%clk
00:16:17]} {[%emt 00:00:12]} 14. O-O {[%clk 00:11:32]} {[%emt 00:00:06]} O-O
{[%clk 00:16:10]} {[%emt 00:00:12]} 15. b4 {[%clk 00:08:10]} {[%emt 00:03:26]}
a6 {[%clk 00:15:25]} {[%emt 00:00:51]} 16. Rc1 {[%clk 00:07:24]} {[%emt
00:00:51]} Bf6 {[%clk 00:14:51]} {[%emt 00:00:38]} 17. Rc5 {[%clk 00:04:16]}
{[%emt 00:03:12]} Qd6 {[%clk 00:13:19]} {[%emt 00:01:39]} 18. Rxh5 {[%clk
00:04:05]} {[%emt 00:00:15]} b6 {[%clk 00:12:46]} {[%emt 00:00:39]} 19. d5
{[%clk 00:02:39]} {[%emt 00:01:31]} exd5 {[%clk 00:12:08]} {[%emt 00:00:44]} 20.
Bxb6 {[%clk 00:02:41]} {[%emt 00:00:02]} g6 {[%clk 00:11:25]} {[%emt 00:00:48]}
21. Bxd8 {[%clk 00:01:32]} {[%emt 00:01:14]} Rxd8 {[%clk 00:11:22]} {[%emt
00:00:08]} 22. Rh4 {[%clk 00:01:35]} {[%emt 00:00:02]} Bxh4 {[%clk 00:11:22]}
{[%emt 00:00:06]} 23. Nxh4 {[%clk 00:01:38]} d4 {[%clk 00:10:52]} {[%emt
00:00:35]} 24. Bxa6 {[%clk 00:01:35]} {[%emt 00:00:08]} Nxb4 {[%clk 00:10:55]}
{[%emt 00:00:02]} 25. axb4 {[%clk 00:01:39]} {[%emt 00:00:01]} Qxa6 {[%clk
00:10:58]} {[%emt 00:00:03]} 26. Nf3 {[%clk 00:01:40]} {[%emt 00:00:04]} Qc4
{[%clk 00:10:51]} {[%emt 00:00:12]} 27. Qd2 {[%clk 00:01:40]} {[%emt 00:00:04]}
d3 {[%clk 00:09:32]} {[%emt 00:01:24]} 28. Rd1 {[%clk 00:01:23]} {[%emt
00:00:21]} Rb8 {[%clk 00:09:18]} {[%emt 00:00:20]} 29. Qxd3 {[%clk 00:01:10]}
{[%emt 00:00:18]} Qxb4 {[%clk 00:09:21]} {[%emt 00:00:03]} 30. Qe3 {[%clk
00:01:05]} {[%emt 00:00:09]} Qa4 {[%clk 00:09:01]} {[%emt 00:00:26]} 31. Re1
{[%clk 00:00:53]} {[%emt 00:00:10]} Qb4 {[%clk 00:08:48]} {[%emt 00:00:25]} 32.
Rf1 {[%clk 00:00:40]} {[%emt 00:00:17]} Qb5 {[%clk 00:08:27]} {[%emt 00:00:25]}
33. Qh6 {[%clk 00:00:43]} {[%emt 00:00:03]} Qb2 {[%clk 00:08:07]} {[%emt
00:00:24]} 34. Ng5 {[%clk 00:00:44]} {[%emt 00:00:05]} Qg7 {[%clk 00:08:10]}
{[%emt 00:00:03]} 35. Qxg7+ {[%clk 00:00:47]} {[%emt 00:00:03]} Kxg7 {[%clk
00:08:13]} {[%emt 00:00:01]} 36. Re1 {[%clk 00:00:50]} {[%emt 00:00:02]} h6
{[%clk 00:08:12]} {[%emt 00:00:06]} 37. Ne4 {[%clk 00:00:54]} {[%emt 00:00:02]}
Re8 {[%clk 00:08:13]} {[%emt 00:00:04]} 38. Re3 {[%clk 00:00:55]} {[%emt
00:00:04]} Re6 {[%clk 00:08:06]} {[%emt 00:00:12]} 39. Kh2 {[%clk 00:00:48]}
{[%emt 00:00:12]} Ra6 {[%clk 00:07:55]} {[%emt 00:00:14]} 40. Kg3 {[%clk
00:00:51]} {[%emt 00:00:03]} Rb6 {[%clk 00:07:55]} {[%emt 00:00:05]} 41. Rd3
{[%clk 00:00:42]} {[%emt 00:00:14]} Re6 {[%clk 00:07:56]} {[%emt 00:00:05]} 42.
f3 {[%clk 00:00:45]} {[%emt 00:00:02]} Re7 {[%clk 00:07:54]} {[%emt 00:00:06]}
43. Rd6 {[%clk 00:00:47]} {[%emt 00:00:03]} Ra7 {[%clk 00:07:55]} {[%emt
00:00:05]} 44. Kf4 {[%clk 00:00:43]} {[%emt 00:00:07]} Ra2 {[%clk 00:07:46]}
{[%emt 00:00:15]} 45. g4 {[%clk 00:00:29]} {[%emt 00:00:18]} g5+ {[%clk
00:07:22]} {[%emt 00:00:30]} 46. Kg3 {[%clk 00:00:12]} {[%emt 00:00:22]} Ra7
{[%clk 00:07:14]} {[%emt 00:00:13]} 47. h4 {[%clk 00:00:12]} {[%emt 00:00:05]}
gxh4+ {[%clk 00:07:10]} {[%emt 00:00:09]} 48. Kxh4 {[%clk 00:00:16]} Ra3 {[%clk
00:07:06]} {[%emt 00:00:09]} 49. Kg3 {[%clk 00:00:15]} {[%emt 00:00:06]} Ra1
{[%clk 00:07:00]} {[%emt 00:00:10]} 50. Rd7 {[%clk 00:00:17]} {[%emt 00:00:04]}
Kg6 {[%clk 00:06:45]} {[%emt 00:00:19]} 51. Nd6 {[%clk 00:00:13]} {[%emt
00:00:09]} f6 {[%clk 00:06:30]} {[%emt 00:00:20]} 52. Ne8 {[%clk 00:00:13]}
{[%emt 00:00:06]} h5 {[%clk 00:06:24]} {[%emt 00:00:11]} 53. gxh5+ {[%clk
00:00:09]} {[%emt 00:00:09]} Kxh5 {[%clk 00:06:27]} {[%emt 00:00:02]} 54. Nxf6+
{[%clk 00:00:12]} {[%emt 00:00:02]} Kg6 {[%clk 00:06:30]} {[%emt 00:00:02]} 55.
Ne4 {[%clk 00:00:16]} {[%emt 00:00:02]} Rg1+ {[%clk 00:06:26]} {[%emt
00:00:09]} 56. Kf4 {[%clk 00:00:20]} {[%emt 00:00:01]} Rh1 {[%clk 00:06:23]}
{[%emt 00:00:08]} 57. Rd5 {[%clk 00:00:14]} {[%emt 00:00:10]} Rh4+ {[%clk
00:06:21]} {[%emt 00:00:07]} 58. Ke5 {[%clk 00:00:13]} {[%emt 00:00:05]} Rh5+
{[%clk 00:06:12]} {[%emt 00:00:14]} 0-1

[Event "MČR juniorů a juniorek v rapid šachu 2023"]
[Site "Czech Republic"]
[Date "2023.09.23"]
[Round "4.22"]
[White "Stara, Zuzana"]
[Black "Mrazek, Adam"]
[Result "0-1"]
[TimeControl "20 min + 5 sec per move"]
[WhiteFideId "23733543"]
[BlackFideId "23725010"]
[WhiteElo "1377"]
[BlackElo "1753"]

1. e4 {[%clk 00:20:08]} d6 {[%clk 00:20:06]} {[%emt 00:00:05]} 2. d4 {[%clk
00:20:10]} {[%emt 00:00:04]} g6 {[%clk 00:20:10]} 3. Nc3 {[%clk 00:20:07]}
{[%emt 00:00:07]} Bg7 {[%clk 00:20:13]} {[%emt 00:00:02]} 4. Bc4 {[%clk
00:19:44]} {[%emt 00:00:28]} a6 {[%clk 00:20:03]} {[%emt 00:00:15]} 5. Nge2
{[%clk 00:19:36]} {[%emt 00:00:12]} b5 {[%clk 00:20:06]} {[%emt 00:00:03]} 6.
Bb3 {[%clk 00:19:33]} {[%emt 00:00:08]} Bb7 {[%clk 00:20:00]} {[%emt 00:00:11]}
7. f3 {[%clk 00:18:39]} {[%emt 00:00:58]} Nd7 {[%clk 00:19:54]} {[%emt
00:00:11]} 8. O-O {[%clk 00:18:25]} {[%emt 00:00:19]} Ngf6 {[%clk 00:19:30]}
{[%emt 00:00:29]} 9. Be3 {[%clk 00:18:10]} {[%emt 00:00:19]} O-O {[%clk
00:19:17]} {[%emt 00:00:20]} 10. Qd2 {[%clk 00:18:11]} {[%emt 00:00:03]} Rc8
{[%clk 00:17:54]} {[%emt 00:01:28]} 11. a3 {[%clk 00:17:14]} {[%emt 00:01:03]}
c5 {[%clk 00:17:31]} {[%emt 00:00:27]} 12. d5 {[%clk 00:16:19]} {[%emt
00:01:00]} Re8 {[%clk 00:16:16]} {[%emt 00:01:20]} 13. Ba2 {[%clk 00:15:12]}
{[%emt 00:01:12]} Qc7 {[%clk 00:15:00]} {[%emt 00:01:20]} 14. Ng3 {[%clk
00:13:55]} {[%emt 00:01:22]} Nb6 {[%clk 00:13:59]} {[%emt 00:01:07]} 15. f4
{[%clk 00:13:25]} {[%emt 00:00:34]} Nfd7 {[%clk 00:13:06]} {[%emt 00:00:58]} 16.
f5 {[%clk 00:12:38]} {[%emt 00:00:52]} b4 {[%clk 00:11:26]} {[%emt 00:01:46]}
17. axb4 {[%clk 00:11:52]} {[%emt 00:00:51]} cxb4 {[%clk 00:11:09]} {[%emt
00:00:22]} 18. Nce2 {[%clk 00:11:44]} {[%emt 00:00:13]} a5 {[%clk 00:05:57]}
{[%emt 00:05:17]} 19. c3 {[%clk 00:11:02]} {[%emt 00:00:47]} Ne5 {[%clk
00:05:11]} {[%emt 00:00:50]} 20. Bd4 {[%clk 00:06:44]} {[%emt 00:04:23]} Nec4
{[%clk 00:02:30]} {[%emt 00:02:47]} 21. Qc1 {[%clk 00:06:13]} {[%emt 00:00:36]}
Bxd4+ {[%clk 00:01:33]} {[%emt 00:01:02]} 22. Nxd4 {[%clk 00:06:04]} {[%emt
00:00:13]} bxc3 {[%clk 00:01:16]} {[%emt 00:00:23]} 23. bxc3 {[%clk 00:05:49]}
{[%emt 00:00:20]} Ne5 {[%clk 00:01:06]} {[%emt 00:00:15]} 24. fxg6 {[%clk
00:05:22]} {[%emt 00:00:32]} hxg6 {[%clk 00:00:54]} {[%emt 00:00:17]} 25. Qh6
{[%clk 00:03:29]} {[%emt 00:01:57]} Ng4 {[%clk 00:00:14]} {[%emt 00:00:45]} 26.
Qg5 {[%clk 00:03:27]} {[%emt 00:00:06]} Qxc3 {[%clk 00:00:16]} {[%emt
00:00:06]} 27. Ndf5 {[%clk 00:02:54]} {[%emt 00:00:37]} Ne5 {[%clk 00:00:06]}
{[%emt 00:00:14]} 28. Nxe7+ {[%clk 00:02:00]} {[%emt 00:01:00]} Rxe7 {[%clk
00:00:08]} {[%emt 00:00:03]} 29. Qxe7 {[%clk 00:02:02]} {[%emt 00:00:02]} Ba6
{[%clk 00:00:11]} {[%emt 00:00:03]} 30. Rfe1 {[%clk 00:01:45]} {[%emt
00:00:22]} Nd3 {[%clk 00:00:09]} {[%emt 00:00:08]} 31. Rf1 {[%clk 00:01:44]}
{[%emt 00:00:06]} Ne5 {[%clk 00:00:08]} {[%emt 00:00:05]} 32. Rfe1 {[%clk
00:01:36]} {[%emt 00:00:13]} Nd3 {[%clk 00:00:08]} {[%emt 00:00:06]} 33. Rf1
{[%clk 00:01:19]} {[%emt 00:00:21]} Qd4+ {[%clk 00:00:12]} 34. Kh1 {[%clk
00:01:12]} {[%emt 00:00:12]} Nf2+ {[%clk 00:00:16]} {[%emt 00:00:01]} 35. Rxf2
{[%clk 00:00:53]} {[%emt 00:00:24]} Qxf2 {[%clk 00:00:16]} {[%emt 00:00:05]} 36.
Qxd6 {[%clk 00:00:30]} {[%emt 00:00:28]} Rc2 {[%clk 00:00:11]} {[%emt
00:00:11]} 37. Rg1 {[%clk 00:00:15]} {[%emt 00:00:19]} Rxa2 {[%clk 00:00:13]}
{[%emt 00:00:04]} 38. Qb8+ {[%clk 00:00:18]} {[%emt 00:00:01]} Bc8 {[%clk
00:00:07]} {[%emt 00:00:12]} 39. d6 {[%clk 00:00:12]} {[%emt 00:00:11]} Kh7
{[%clk 00:00:10]} {[%emt 00:00:01]} 40. Qc7 {[%clk 00:00:14]} {[%emt 00:00:03]}
Bh3 {[%clk 00:00:08]} {[%emt 00:00:07]} 41. Ne2 {[%clk 00:00:07]} {[%emt
00:00:12]} Rxe2 {[%clk 00:00:07]} {[%emt 00:00:06]} 0-1